[Event "UKR-ch Women Final 2018"]
[Site "Kiev"]
[Date "2018.12.15"]
[Round "5"]
[White "Dolzhykova, Kateryna"]
[Black "Berdnyk, Mariia"]
[Result "1-0"]
[ECO "B51"]
[WhiteElo "2161"]
[BlackElo "2248"]
[Annotator "NA"]
[PlyCount "75"]
[EventDate "2018.12.11"]
[EventType "tourn"]
[EventCountry "UKR"]
[SourceTitle "playchess.com"]
[Source "ChessBase"]
[SourceQuality "1"]
[TimeControl "40/5400+30:1800+30"]

1. e4 {[%emt 0:00:00]} c5 {[%emt 0:00:00]} 2. Nf3 {[%emt 0:00:00]} d6 {[%emt 0:00:00]} 3. Bb5+ {[%emt 0:00:13]} Nd7 {[%emt 0:00:00]} 4. Ba4 {[%emt 0:00:14]} Ngf6 {[%emt 0:00:00]} 5. O-O {[%emt 0:00:27]} a6 {[%emt 0:00:00]} 6. c4 {[%emt 0:00:35]} g6 {[%emt 0:00:00]} 7. b4 {[%emt 0:18:30]} Bg7 {[%emt 0:03:55]} 8. bxc5 {[%emt 0:05:19]} Nxe4 {[%emt 0:08:14]} 9. d4 {[%emt 0:00:17]} O-O {[%emt 0:07:52]} 10. cxd6 {[%emt 0:11:34]} Nxd6 {[%emt 0:00:28]} 11. Bb3 {[%emt 0:01:24]} b5 {[%emt 0:03:00]} 12. cxb5 {[%emt 0:12:13]} axb5 {[%emt 0:00:17]} 13. Nbd2 {[%emt 0:00:18]} Bb7 {[%emt 0:01:13]} 14. Bb2 {[%emt 0:00:23]} Nb6 {[%emt 0:03:32]} 15. Rc1 {[%emt 0:07:21]} Na4 {[%emt 0:05:33]} 16. Ba1 {[%emt 0:00:21]} Nf5 {[%emt 0:01:53]} 17. Re1 {[%emt 0:12:21]} Nxd4 {[%emt 0:11:50]} 18. Nxd4 {[%emt 0:00:20]} Bxd4 {[%emt 0:00:01]} 19. Bxd4 {[%emt 0:01:19]} Qxd4 {[%emt 0:00:01]} 20. Rxe7 {[%emt 0:00:58]} Bd5 {[%emt 0:01:00]} 21. Bxd5 {[%emt 0:08:03]} Qxd5 {[%emt 0:00:07]} 22. Ne4 {[%emt 0:03:59]} Qxd1+ {[%emt 0:02:05]} 23. Rxd1 {[%emt 0:00:01]} Rfd8 {[%emt 0:01:54]} 24. Re1 {[%emt 0:03:12]} h6 {[%emt 0:04:39]} 25. h4 {[%emt 0:01:49]} Kg7 {[%emt 0:10:37]} 26. h5 gxh5 {[%emt 0:03:00]} 27. Re3 {[%emt 0:01:23]} h4 {[%emt 0:05:47]} 28. Rf3 {[%emt 0:00:19]} Rd1+ {[%emt 0:00:22]} 29. Kh2 {[%emt 0:00:03]} Rf8 {[%emt 0:00:25]} 30. Rf4 {[%emt 0:01:05]} Re1 {[%emt 0:06:39]} 31. Rc7 {[%emt 0:03:47]} Kg6 {[%emt 0:02:07]} 32. Rc6+ {[%emt 0:01:09]} f6 {[%emt 0:03:21]} 33. Nxf6 {[%emt 0:00:12]} Rd8 {[%emt 0:00:16]} 34. Ne4+ {[%emt 0:01:02]} Kg7 {[%emt 0:03:21]} 35. Rc7+ {[%emt 0:00:14]} Kg6 {[%emt 0:01:01]} 36. Rf6+ {[%emt 0:00:09]} Kh5 {[%emt 0:00:03]} 37. Rg7 {[%emt 0:00:37]} Rd5 {[%emt 0:00:36]} 38. g4+ {[%emt 0:00:18]} 1-0

[Event "UKR-ch Women Final 2018"]
[Site "Kiev"]
[Date "2018.12.17"]
[Round "6"]
[White "Doluhanova, Evgeniya"]
[Black "Babiy, Olga"]
[Result "0-1"]
[ECO "A06"]
[WhiteElo "2367"]
[BlackElo "2275"]
[Annotator "NA"]
[PlyCount "35"]
[EventDate "2018.12.11"]
[EventType "tourn"]
[EventCountry "UKR"]
[SourceTitle "playchess.com"]
[Source "ChessBase"]
[SourceQuality "1"]
[TimeControl "40/5400+30:1800+30"]

1. Nf3 {[%emt 0:00:41]} d5 {[%emt 0:01:10]} 2. e3 {[%emt 0:01:00]} Nf6 {[%emt 0:00:45]} 3. b3 {[%emt 0:01:10]} Bf5 {[%emt 0:03:55]} 4. Bb2 {[%emt 0:00:51]} e6 {[%emt 0:00:16]} 5. Be2 {[%emt 0:08:47]} h6 {[%emt 0:00:54]} 6. d3 {[%emt 0:02:04]} Nbd7 {[%emt 0:08:17]} 7. Nbd2 {[%emt 0:04:16]} Be7 {[%emt 0:07:37]} 8. O-O {[%emt 0:02:09]} O-O $11 {[%emt 0:00:32] LiveBook: 7 Games} 9. c4 {[%emt 0:04:51]} a5 {[%emt 0:06:44]} 10. Rc1 {[%emt 0:05:09]} a4 {[%emt 0:03:18]} 11. cxd5 {[%emt 0:15:55]} exd5 {[%emt 0:00:14]} 12. bxa4 {[%emt 0:21:24]} Nb6 {[%emt 0:03:24]} 13. Be5 {[%emt 0:01:09]} c6 {[%emt 0:05:29]} 14. Qb3 {[%emt 0:05:33]} Nfd7 {[%emt 0:04:49]} 15. a5 {[%emt 0:08:23]} Nxe5 {[%emt 0:13:24]} 16. Nxe5 {[%emt 0:01:14]} Rxa5 {[%emt 0:00:30]} 17. Rb1 {[%emt 0:00:30]} Rb5 {[%emt 0:00:30]} 18. Ng4 0-1

[Event "UKR-ch Women Final 2018"]
[Site "Kiev"]
[Date "2018.12.17"]
[Round "6"]
[White "Martynkova, Olena"]
[Black "Shpanko, Nadiia"]
[Result "0-1"]
[ECO "A05"]
[WhiteElo "2173"]
[BlackElo "2262"]
[Annotator "NA"]
[PlyCount "170"]
[EventDate "2018.12.11"]
[EventType "tourn"]
[EventCountry "UKR"]
[SourceTitle "playchess.com"]
[Source "ChessBase"]
[SourceQuality "1"]
[TimeControl "40/5400+30:1800+30"]

1. Nf3 {[%emt 0:00:00]} Nf6 {[%emt 0:00:00]} 2. g3 {[%emt 0:00:00]} d5 {[%emt 0:00:14]} 3. Bg2 {[%emt 0:00:32]} e6 {[%emt 0:00:31]} 4. O-O {[%emt 0:01:19]} Nbd7 {[%emt 0:03:16]} 5. d4 {[%emt 0:09:24]} Bd6 {[%emt 0:04:15]} 6. c4 {[%emt 0:11:25]} c6 {[%emt 0:01:27]} 7. Nbd2 {[%emt 0:09:31]} O-O {[%emt 0:02:42]} 8. Qc2 {[%emt 0:02:28]} Re8 {[%emt 0:02:02]} 9. Rd1 {[%emt 0:05:04]} Qe7 {[%emt 0:05:16] LiveBook: 107 Games} 10. a3 {[%emt 0:05:41]} Bb8 {[%emt 0:15:04]} 11. b4 {[%emt 0:07:33]} e5 $11 {[%emt 0:15:34]} 12. dxe5 {[%emt 0:16:03]} Nxe5 {[%emt 0:00:40]} 13. cxd5 {[%emt 0:03:41]} Nxd5 {[%emt 0:02:38]} 14. Nd4 {[%emt 0:03:34]} Ng4 {[%emt 0:04:34]} 15. N2f3 {[%emt 0:03:38]} Bd7 16. Re1 {[%emt 0:07:48]} a5 {[%emt 0:10:46]} 17. Bg5 Qf8 {[%emt 0:10:11]} 18. e4 {[%emt 0:10:11]} Nb6 {[%emt 0:02:05]} 19. Bd2 axb4 {[%emt 0:02:39]} 20. axb4 {[%emt 0:04:34]} Rxa1 {[%emt 0:02:24]} 21. Rxa1 {[%emt 0:00:02]} Bd6 {[%emt 0:00:33]} 22. Rb1 {[%emt 0:00:42]} Qe7 {[%emt 0:08:34]} 23. h3 Nf6 24. b5 {[%emt 0:06:36]} c5 {[%emt 0:04:20]} 25. e5 {[%emt 0:01:23]} Bxe5 {[%emt 0:03:02]} 26. Nxe5 Qxe5 {[%emt 0:00:09]} 27. Nf3 {[%emt 0:00:43]} Qf5 {[%emt 0:02:15]} 28. Qxf5 Bxf5 {[%emt 0:00:07]} 29. Rc1 {[%emt 0:01:04]} Nbd7 {[%emt 0:00:55]} 30. Nh4 {[%emt 0:00:52]} Be4 {[%emt 0:01:30]} 31. b6 {[%emt 0:00:33]} Bxg2 32. Kxg2 Nd5 {[%emt 0:02:28]} 33. Nf5 {[%emt 0:00:58]} Re6 {[%emt 0:02:37]} 34. Ba5 {[%emt 0:00:31]} h5 {[%emt 0:04:46]} 35. Rd1 {[%emt 0:00:30]} N7xb6 {[%emt 0:02:32]} 36. Bxb6 {[%emt 0:00:23]} Nxb6 {[%emt 0:00:02]} 37. Rd8+ {[%emt 0:00:38]} Kh7 {[%emt 0:00:06]} 38. Rb8 {[%emt 0:00:29]} g6 {[%emt 0:00:27]} 39. Ne3 {[%emt 0:00:29]} Re7 {[%emt 0:00:08]} 40. Kf3 {[%emt 0:00:00]} Kg7 {[%emt 0:00:00]} 41. g4 {[%emt 0:03:09]} hxg4+ {[%emt 0:01:00]} 42. hxg4 f6 {[%emt 0:02:42]} 43. Kf4 {[%emt 0:11:41]} Rc7 {[%emt 0:03:40]} 44. Ke4 {[%emt 0:02:44]} Rd7 {[%emt 0:01:22]} 45. f4 {[%emt 0:03:18]} c4 {[%emt 0:01:14]} 46. Kf3 {[%emt 0:01:28]} c3 {[%emt 0:03:57]} 47. Ke2 {[%emt 0:02:31]} Kh7 {[%emt 0:12:19]} 48. g5 {[%emt 0:05:16]} fxg5 {[%emt 0:00:59]} 49. fxg5 {[%emt 0:00:06]} Kg7 {[%emt 0:00:12]} 50. Re8 {[%emt 0:01:34]} Nc4 {[%emt 0:01:45]} 51. Rc8 {[%emt 0:01:06]} Rd2+ {[%emt 0:03:03]} 52. Ke1 {[%emt 0:03:37]} Nxe3 {[%emt 0:00:46]} 53. Rc7+ {[%emt 0:00:01]} Kf8 {[%emt 0:00:17]} 54. Rxc3 {[%emt 0:00:02]} Rg2 {[%emt 0:01:41]} 55. Rxe3 {[%emt 0:00:03]} Rxg5 {[%emt 0:00:06]} 56. Re6 {[%emt 0:01:09]} b5 {[%emt 0:00:20]} 57. Kf2 {[%emt 0:01:07]} Kg7 {[%emt 0:00:39]} 58. Rb6 {[%emt 0:00:39]} Kh6 {[%emt 0:00:44]} 59. Kf3 {[%emt 0:00:16]} Rc5 {[%emt 0:00:08]} 60. Kf4 {[%emt 0:00:43]} Kh5 61. Rb8 {[%emt 0:00:30]} Rf5+ {[%emt 0:00:47]} 62. Kg3 {[%emt 0:00:33]} Kg5 {[%emt 0:00:07]} 63. Rb6 Rc5 {[%emt 0:00:06]} 64. Kf3 {[%emt 0:00:55]} Kf5 {[%emt 0:00:06]} 65. Ke3 {[%emt 0:00:29]} Rc3+ {[%emt 0:01:48]} 66. Kd2 {[%emt 0:00:33]} Rc5 {[%emt 0:00:36]} 67. Ke3 {[%emt 0:00:29]} Re5+ {[%emt 0:00:17]} 68. Kd4 {[%emt 0:00:34]} g5 {[%emt 0:00:38]} 69. Rb8 {[%emt 0:00:17]} Kf4 {[%emt 0:00:26]} 70. Rf8+ {[%emt 0:00:36]} Rf5 {[%emt 0:00:06]} 71. Re8 {[%emt 0:00:03]} g4 {[%emt 0:00:10]} 72. Re4+ {[%emt 0:00:25]} Kg3 {[%emt 0:02:15]} 73. Ke3 {[%emt 0:00:09]} Rf3+ {[%emt 0:00:15]} 74. Ke2 {[%emt 0:00:12]} Rf4 {[%emt 0:00:08]} 75. Re5 {[%emt 0:00:27]} b4 {[%emt 0:00:19]} 76. Rb5 {[%emt 0:00:38]} Kg2 {[%emt 0:00:19]} 77. Ke3 {[%emt 0:00:24]} Rf3+ {[%emt 0:00:08]} 78. Ke2 {[%emt 0:00:37]} b3 {[%emt 0:00:14]} 79. Rb4 {[%emt 0:00:32]} g3 {[%emt 0:00:06]} 80. Rd4 {[%emt 0:00:29]} b2 {[%emt 0:01:09]} 81. Rd1 {[%emt 0:00:26]} Rf8 {[%emt 0:00:32]} 82. Ke3 {[%emt 0:00:31]} Re8+ {[%emt 0:00:19]} 83. Kf4 {[%emt 0:00:15]} Kf2 {[%emt 0:00:19]} 84. Rd2+ {[%emt 0:01:45]} Re2 {[%emt 0:00:10]} 85. Rd1 {[%emt 0:00:09]} g2 {[%emt 0:00:08]} 0-1

[Event "UKR-ch Women Final 2018"]
[Site "Kiev"]
[Date "2018.12.18"]
[Round "7"]
[White "Shpanko, Nadiia"]
[Black "Doluhanova, Evgeniya"]
[Result "1/2-1/2"]
[ECO "E47"]
[WhiteElo "2262"]
[BlackElo "2367"]
[Annotator "NA"]
[PlyCount "132"]
[EventDate "2018.12.11"]
[EventType "tourn"]
[EventCountry "UKR"]
[SourceTitle "playchess.com"]
[Source "ChessBase"]
[SourceQuality "1"]
[TimeControl "40/5400+30:1800+30"]

1. d4 {[%emt 0:00:00]} Nf6 {[%emt 0:00:00]} 2. c4 {[%emt 0:00:00]} e6 {[%emt 0:00:00]} 3. Nc3 {[%emt 0:00:00]} Bb4 {[%emt 0:00:25]} 4. e3 {[%emt 0:00:00]} O-O {[%emt 0:00:14]} 5. Bd3 {[%emt 0:00:02]} c5 {[%emt 0:00:49]} 6. Nf3 {[%emt 0:00:30]} b6 {[%emt 0:02:22]} 7. O-O {[%emt 0:02:04]} Bb7 {[%emt 0:03:35]} 8. Nb5 {[%emt 0:06:17]} cxd4 9. Nbxd4 {[%emt 0:00:39]} Nc6 {[%emt 0:03:21]} 10. Nc2 $146 {[%emt 0:01:49] E43: Nimzo-Indian: Rubinstein: 4...b6} ({Predecessor:} 10. Nxc6 Bxc6 11. b3 Bc3 12. Rb1 Ne4 13. Ba3 Re8 14. Rc1 f5 15. Bxe4 fxe4 16. Nd4 Bxd4 17. Qxd4 e5 {1-0 (31) Surroca Collazo,A-De la Rosa Solorzano,J Cuba 2001}) 10... Be7 {[%emt 0:01:21]} 11. b3 {[%emt 0:02:19]} d5 {[%emt 0:04:49]} 12. Bb2 {[%emt 0:01:24]} dxc4 {[%emt 0:02:26]} 13. Bxc4 {[%emt 0:00:06]} Qc7 {[%emt 0:01:21]} 14. Ncd4 {[%emt 0:01:46]} Rad8 {[%emt 0:08:21]} 15. Qe2 {[%emt 0:02:21]} Qb8 {[%emt 0:13:17]} 16. Rfd1 {[%emt 0:07:11]} Qa8 {[%emt 0:03:32]} 17. Ba6 {[%emt 0:08:07]} Nxd4 {[%emt 0:04:23]} 18. Bxd4 {[%emt 0:00:27]} Bc6 {[%emt 0:04:50]} 19. Bb5 {[%emt 0:03:18]} Bxb5 {[%emt 0:00:43]} 20. Qxb5 {[%emt 0:00:07]} Rd5 {[%emt 0:00:54]} 21. Qe2 {[%emt 0:00:24]} Rfd8 $11 {[%emt 0:05:17]} 22. Bb2 {[%emt 0:03:42]} Ne4 {[%emt 0:01:55]} 23. h3 {[%emt 0:00:39]} Bc5 {[%emt 0:05:05]} 24. Qc2 {[%emt 0:03:56]} Qb7 {[%emt 0:04:17]} 25. Bd4 {[%emt 0:09:47]} f5 {[%emt 0:16:59]} 26. Bxc5 {[%emt 0:00:55]} bxc5 {[%emt 0:01:40]} 27. Rxd5 {[%emt 0:05:44]} Qxd5 {[%emt 0:01:51]} 28. Kf1 {[%emt 0:01:57]} h6 {[%emt 0:00:37]} 29. Ke1 {[%emt 0:00:58]} g5 {[%emt 0:01:26]} 30. Qc4 {[%emt 0:05:07]} g4 {[%emt 0:02:46]} 31. Qxd5 {[%emt 0:00:18]} Rxd5 {[%emt 0:00:08]} 32. Ng1 {[%emt 0:02:14]} h5 {[%emt 0:06:32]} 33. f3 {[%emt 0:02:41]} gxh3 34. gxh3 {[%emt 0:00:21]} Nc3 {[%emt 0:01:01]} 35. Ne2 {[%emt 0:00:45]} Nxe2 {[%emt 0:00:36]} 36. Kxe2 {[%emt 0:01:20]} Kf7 {[%emt 0:00:03]} 37. f4 {[%emt 0:00:17]} e5 {[%emt 0:00:34]} 38. fxe5 {[%emt 0:02:09]} Rxe5 {[%emt 0:00:03]} 39. Rf1 {[%emt 0:00:52]} Ke6 {[%emt 0:00:36]} 40. Kf3 {[%emt 0:00:00]} Re4 {[%emt 0:00:00]} 41. Rg1 {[%emt 0:02:39]} Rh4 {[%emt 0:04:55]} 42. Rg6+ {[%emt 0:01:41]} Ke5 {[%emt 0:02:10]} 43. Kg3 {[%emt 0:00:19]} Re4 {[%emt 0:09:19]} 44. Kf3 {[%emt 0:00:09]} Rh4 {[%emt 0:01:27]} 45. Kg3 {[%emt 0:00:09]} Rb4 {[%emt 0:06:21]} 46. Rc6 {[%emt 0:02:34]} Kd5 {[%emt 0:01:41]} 47. Rh6 {[%emt 0:01:52]} Ke4 {[%emt 0:06:18]} 48. Rxh5 {[%emt 0:00:49]} a5 {[%emt 0:02:10]} 49. Kf2 {[%emt 0:03:04]} Ke5 {[%emt 0:00:05]} 50. Kg3 {[%emt 0:00:54]} Ke4 {[%emt 0:01:00]} 51. Kf2 {[%emt 0:00:53]} Ke5 {[%emt 0:00:17]} 52. Kg3 {[%emt 0:00:42]} c4 {[%emt 0:01:14]} 53. bxc4 {[%emt 0:04:37]} Rxc4 {[%emt 0:00:05]} 54. Rh8 {[%emt 0:00:34]} Ra4 {[%emt 0:00:33]} 55. Re8+ {[%emt 0:03:34]} Kf6 {[%emt 0:00:13]} 56. Rf8+ {[%emt 0:00:24]} Ke6 {[%emt 0:00:54]} 57. h4 {[%emt 0:01:57]} Rxa2 {[%emt 0:00:12]} 58. h5 {[%emt 0:00:30]} Ra1 {[%emt 0:00:19]} 59. h6 {[%emt 0:06:08]} Rh1 {[%emt 0:00:47]} 60. Ra8 {[%emt 0:00:47]} Kf6 {[%emt 0:00:37]} 61. Ra6+ {[%emt 0:04:52]} Kg5 {[%emt 0:00:44]} 62. Rxa5 {[%emt 0:00:10]} Rxh6 {[%emt 0:00:08]} 63. e4 {[%emt 0:00:08]} Rf6 {[%emt 0:00:03]} 64. Rd5 {[%emt 0:00:16]} Rf7 {[%emt 0:00:34]} 65. exf5 {[%emt 0:00:41]} Rxf5 {[%emt 0:00:03]} 66. Rxf5+ {[%emt 0:00:03]} Kxf5 1/2-1/2

[Event "UKR-ch Women Final 2018"]
[Site "Kiev"]
[Date "2018.12.18"]
[Round "7"]
[White "Rakhmangulova, Anastasiya"]
[Black "Berdnyk, Mariia"]
[Result "1-0"]
[ECO "B50"]
[WhiteElo "2233"]
[BlackElo "2248"]
[Annotator "NA"]
[PlyCount "70"]
[EventDate "2018.12.11"]
[EventType "tourn"]
[EventCountry "UKR"]
[SourceTitle "playchess.com"]
[Source "ChessBase"]
[SourceQuality "1"]
[TimeControl "40/5400+30:1800+30"]

1. e4 {[%emt 0:00:00]} c5 {[%emt 0:00:00]} 2. Nf3 {[%emt 0:00:00]} d6 {[%emt 0:00:00]} 3. h3 {[%emt 0:00:53]} Nf6 {[%emt 0:00:53]} 4. c3 {[%emt 0:00:04]} Nc6 {[%emt 0:03:52]} 5. Bd3 {[%emt 0:00:05]} e6 {[%emt 0:03:06]} 6. O-O {[%emt 0:00:18]} Be7 {[%emt 0:00:13]} 7. Bc2 {[%emt 0:00:04]} O-O {[%emt 0:00:44]} 8. Re1 {[%emt 0:00:16]} Qc7 {[%emt 0:01:28]} 9. d4 {[%emt 0:00:42]} b6 {[%emt 0:05:43]} 10. e5 {[%emt 0:05:15]} Nd5 {[%emt 0:08:17]} 11. a3 {[%emt 0:01:47]} Ba6 {[%emt 0:00:53]} 12. Bd3 {[%emt 0:22:55]} c4 {[%emt 0:09:22]} 13. Bc2 {[%emt 0:01:36]} dxe5 {[%emt 0:01:51]} 14. dxe5 {[%emt 0:00:24]} Bc5 {[%emt 0:02:38]} 15. Qe2 {[%emt 0:03:39]} g6 {[%emt 0:10:38]} (15... Kh8 $14) 16. Qe4 $14 {[%emt 0:16:19]} ({White should try} 16. Bh6 $16) 16... Rfd8 {[%emt 0:04:04]} 17. Qh4 {[%emt 0:05:20]} Bf8 {[%emt 0:00:30]} 18. Bh6 {[%emt 0:02:16]} Bg7 {[%emt 0:02:05]} 19. Bxg7 {[%emt 0:12:47]} Kxg7 {[%emt 0:00:01]} 20. Nbd2 {[%emt 0:01:18]} Qe7 {[%emt 0:02:59]} 21. Qe4 {[%emt 0:05:58]} Na5 {[%emt 0:01:25]} 22. h4 {[%emt 0:01:15]} Bb7 {[%emt 0:03:47]} 23. Qg4 {[%emt 0:00:47]} h5 24. Qg3 {[%emt 0:00:12]} Bc6 {[%emt 0:03:43]} 25. Nd4 {[%emt 0:03:00]} Rac8 {[%emt 0:05:16]} 26. f4 {[%emt 0:01:28]} Kh8 {[%emt 0:01:55]} 27. Ne4 {[%emt 0:01:08]} Nb7 {[%emt 0:01:01]} 28. Ng5 {[%emt 0:00:18]} Nc5 {[%emt 0:02:11]} 29. Rf1 {[%emt 0:04:12]} Bd7 30. Qf3 {[%emt 0:04:27]} Be8 {[%emt 0:11:43]} 31. Rae1 {[%emt 0:01:46]} Qf8 {[%emt 0:03:55]} 32. f5 {[%emt 0:00:43]} exf5 {[%emt 0:00:53]} 33. Bxf5 {[%emt 0:00:12]} Nd3 {[%emt 0:02:07]} 34. Bxc8 {[%emt 0:01:12]} Rxc8 {[%emt 0:00:16]} 35. Qxd5 {[%emt 0:00:21]} Ra8 1-0

[Event "UKR-ch Women Final 2018"]
[Site "Kiev"]
[Date "2018.12.18"]
[Round "7"]
[White "Dolzhykova, Kateryna"]
[Black "Martynkova, Olena"]
[Result "0-1"]
[ECO "B40"]
[WhiteElo "2161"]
[BlackElo "2173"]
[Annotator "NA"]
[PlyCount "108"]
[EventDate "2018.12.11"]
[EventType "tourn"]
[EventCountry "UKR"]
[SourceTitle "playchess.com"]
[Source "ChessBase"]
[SourceQuality "1"]
[TimeControl "40/5400+30:1800+30"]

1. e4 {[%emt 0:00:00]} c5 {[%emt 0:00:00]} 2. Nf3 {[%emt 0:00:00]} e6 {[%emt 0:00:00]} 3. c4 {[%emt 0:00:00]} Nc6 {[%emt 0:00:13]} 4. Nc3 {[%emt 0:00:00]} Nd4 {[%emt 0:00:35]} 5. Nxd4 {[%emt 0:00:34]} cxd4 {[%emt 0:00:08]} 6. Nb5 {[%emt 0:00:58]} e5 {[%emt 0:00:47]} 7. Be2 {[%emt 0:08:31]} Nf6 {[%emt 0:01:17]} 8. d3 {[%emt 0:04:48]} a6 {[%emt 0:00:52]} 9. Na3 {[%emt 0:00:07]} Bb4+ {[%emt 0:01:14]} 10. Bd2 {[%emt 0:00:14]} Bxd2+ {[%emt 0:01:12]} 11. Qxd2 {[%emt 0:00:08]} d6 {[%emt 0:01:23]} 12. f4 {[%emt 0:04:04]} O-O {[%emt 0:02:45]} 13. O-O {[%emt 0:03:59]} b6 {[%emt 0:04:59]} 14. b4 {[%emt 0:02:18]} Qe7 {[%emt 0:09:05]} 15. Rac1 {[%emt 0:09:16]} a5 {[%emt 0:08:37]} 16. c5 $15 {[%emt 0:10:06]} bxc5 {[%emt 0:09:35]} 17. fxe5 {[%emt 0:03:49]} dxe5 {[%emt 0:06:26]} 18. bxc5 {[%emt 0:02:11]} Nd7 {[%emt 0:08:34]} 19. Qc2 {[%emt 0:00:38]} Ba6 {[%emt 0:05:30]} 20. c6 {[%emt 0:09:21]} Rfc8 {[%emt 0:07:33]} 21. Nb1 {[%emt 0:16:13]} Nf8 {[%emt 0:09:22]} 22. Bg4 {[%emt 0:04:46]} Ne6 {[%emt 0:01:45]} 23. Nd2 {[%emt 0:05:15]} Rc7 {[%emt 0:04:15]} 24. Qb3 {[%emt 0:09:54]} Nf4 {[%emt 0:08:25]} 25. Nc4 {[%emt 0:03:09]} Rxc6 {[%emt 0:02:48]} 26. g3 {[%emt 0:00:02]} Ng6 {[%emt 0:03:54]} 27. Nb6 {[%emt 0:00:38]} Rxc1 {[%emt 0:00:53]} 28. Rxc1 {[%emt 0:00:01]} Rf8 {[%emt 0:00:49]} 29. h4 Nxh4 30. gxh4 {[%emt 0:02:47]} Qxh4 {[%emt 0:00:46]} 31. Qd1 {[%emt 0:00:24]} Qg3+ {[%emt 0:00:04]} 32. Kh1 {[%emt 0:00:09]} Bxd3 {[%emt 0:00:49]} 33. Qf3 {[%emt 0:00:26]} Qxf3+ {[%emt 0:01:18]} 34. Bxf3 {[%emt 0:00:01]} Rd8 {[%emt 0:00:29]} 35. Rc5 {[%emt 0:00:18]} f6 {[%emt 0:00:31]} 36. Rxa5 {[%emt 0:00:09]} Rb8 {[%emt 0:00:33]} 37. Ra8 {[%emt 0:00:45]} Rxa8 {[%emt 0:00:01]} 38. Nxa8 {[%emt 0:00:04]} f5 {[%emt 0:00:33]} 39. exf5 {[%emt 0:00:24]} Bxf5 {[%emt 0:00:34]} 40. Bd5+ {[%emt 0:00:00]} Kf8 {[%emt 0:00:00]} 41. Nb6 {[%emt 0:01:45]} Ke7 {[%emt 0:05:23]} 42. a4 {[%emt 0:08:54]} Kd6 {[%emt 0:03:42]} 43. a5 {[%emt 0:00:05]} Kc5 {[%emt 0:06:27]} 44. Bc4 {[%emt 0:00:09]} d3 {[%emt 0:01:50]} 45. Bb3 {[%emt 0:15:18]} e4 46. Nc4 {[%emt 0:04:24]} Bc8 {[%emt 0:09:19]} 47. Ne3 {[%emt 0:03:50]} Kd4 {[%emt 0:01:07]} 48. Nd5 {[%emt 0:00:37]} Bb7 {[%emt 0:02:06]} 49. Nc7 {[%emt 0:01:04]} e3+ {[%emt 0:00:23]} 50. Kg1 {[%emt 0:00:01]} Kc3 {[%emt 0:00:44]} 51. Bd5 {[%emt 0:02:20]} e2 {[%emt 0:01:49]} 52. Bxb7 {[%emt 0:00:28]} e1=Q+ {[%emt 0:00:08]} 53. Kg2 {[%emt 0:00:01]} d2 {[%emt 0:01:01]} 54. Nd5+ {[%emt 0:00:31]} Kd4 {[%emt 0:00:19]} 0-1

[Event "UKR-ch Women Final 2018"]
[Site "Kiev"]
[Date "2018.12.19"]
[Round "8"]
[White "Shpanko, Nadiia"]
[Black "Dolzhykova, Kateryna"]
[Result "1/2-1/2"]
[ECO "B76"]
[WhiteElo "2262"]
[BlackElo "2161"]
[Annotator "NA"]
[PlyCount "97"]
[EventDate "2018.12.11"]
[EventType "tourn"]
[EventCountry "UKR"]
[SourceTitle "playchess.com"]
[Source "ChessBase"]
[SourceQuality "1"]
[TimeControl "40/5400+30:1800+30"]

1. e4 {[%emt 0:00:00]} c5 {[%emt 0:00:00]} 2. Nf3 {[%emt 0:00:00]} d6 {[%emt 0:00:00]} 3. d4 {[%emt 0:00:07]} cxd4 {[%emt 0:00:00]} 4. Nxd4 {[%emt 0:00:03]} Nf6 {[%emt 0:00:00]} 5. Nc3 {[%emt 0:00:08]} g6 {[%emt 0:00:00]} 6. Be3 {[%emt 0:00:49]} Bg7 {[%emt 0:00:04]} 7. f3 {[%emt 0:00:10]} Nc6 {[%emt 0:00:05]} 8. Qd2 {[%emt 0:00:14]} O-O {[%emt 0:00:14]} 9. O-O-O {[%emt 0:00:56]} d5 {[%emt 0:00:14]} 10. Kb1 {[%emt 0:01:35]} Nxd4 {[%emt 0:00:36]} 11. e5 {[%emt 0:00:49]} Nf5 {[%emt 0:01:06]} 12. exf6 {[%emt 0:00:18]} exf6 {[%emt 0:06:36] B76: Sicilian Dragon: Yugoslav Attack, 9 g4 and 9 0-0-0} 13. Bc5 {[%emt 0:01:41]} d4 {[%emt 0:00:07]} 14. Bxf8 {[%emt 0:02:19] LiveBook: 45 Games} Qxf8 {[%emt 0:00:13]} 15. Nb5 {[%emt 0:00:08]} Ne3 {[%emt 0:00:13]} 16. Re1 {[%emt 0:00:11]} f5 {[%emt 0:00:17]} 17. f4 {[%emt 0:00:41]} Qc5 {[%emt 0:06:11]} 18. c3 $1 {[%emt 0:01:22]} Nxf1 {[%emt 0:03:35]} 19. Re8+ Bf8 20. Qxd4 {[%emt 0:02:11]} Qxb5 {[%emt 0:04:03] [#]} 21. Qd8 $146 {[%emt 0:00:12]} Nd2+ {[%emt 0:03:40]} 22. Kc2 {[%emt 0:00:58]} Qxe8 {[%emt 0:29:35]} 23. Qxe8 {[%emt 0:00:07]} Ne4 {[%emt 0:00:01]} 24. Rd1 Nf6 {[%emt 0:02:56]} 25. Qd8 {[%emt 0:05:53]} Kg7 {[%emt 0:01:02]} 26. Qc7 $1 {[%emt 0:01:48]} Be6 {[%emt 0:16:23]} 27. Qxb7 {[%emt 0:03:24]} Re8 {[%emt 0:00:12]} 28. Qxa7 {[%emt 0:11:27]} Bd5 {[%emt 0:00:17]} 29. Rxd5 {[%emt 0:04:48]} Nxd5 {[%emt 0:00:09]} 30. Qd4+ {[%emt 0:00:08]} Nf6 {[%emt 0:00:06]} 31. b4 {[%emt 0:02:41]} Re4 {[%emt 0:02:18]} 32. Qd2 {[%emt 0:03:11]} Rc4 {[%emt 0:01:56]} 33. Qd3 {[%emt 0:01:18]} Rxf4 {[%emt 0:01:07]} 34. Kb3 {[%emt 0:02:49]} Ne4 $16 {[%emt 0:01:43]} 35. a4 {[%emt 0:04:13]} Rf2 {[%emt 0:06:59]} 36. Qd4+ {[%emt 0:04:27]} Kg8 {[%emt 0:02:25]} 37. a5 Rf1 38. Ka2 {[%emt 0:05:18]} Bg7 {[%emt 0:14:03]} 39. Qd8+ {[%emt 0:00:00]} Bf8 40. a6 Nxc3+ {[%emt 0:00:00]} 41. Kb3 {[%emt 0:05:40]} Ra1 {[%emt 0:07:47]} 42. Kxc3 {[%emt 0:00:20]} Rxa6 {[%emt 0:00:06]} 43. b5 {[%emt 0:00:31]} Rd6 {[%emt 0:02:49]} 44. Qc7 Bg7+ 45. Kc2 {[%emt 0:08:55]} Be5 {[%emt 0:02:56]} 46. Qc8+ {[%emt 0:00:16]} Kg7 {[%emt 0:00:05]} 47. h3 Bd4 {[%emt 0:03:30]} 48. Qc7 {[%emt 0:02:02]} Re6 {[%emt 0:00:51]} 49. Qc4 {[%emt 0:01:26]} 1/2-1/2